[Event "*** Titled Tuesday Blitz"]
[Site "Chess.com"]
[Date "2021.02.02"]
[Round "4"]
[White "onnoelgersma"]
[Black "swisspower96"]
[Result "0-1"]
[WhiteElo "2483"]
[BlackElo "2651"]
[TimeControl "180+1"]
[EndTime "10:41:00 PST"]
[Termination "swisspower96 won by resignation"]

1. Nf3 {[%clk 0:03:00]} 1... d5 {[%clk 0:02:55.9]} 2. e3 {[%clk 0:02:56.4]} 2...
Nf6 {[%clk 0:02:54.5]} 3. b3 {[%clk 0:02:55.4]} 3... Bf5 {[%clk 0:02:53.1]} 4.
Bb2 {[%clk 0:02:55.2]} 4... h6 {[%clk 0:02:53.4]} 5. d4 {[%clk 0:02:51.1]} 5...
e6 {[%clk 0:02:51.1]} 6. Bd3 {[%clk 0:02:51.2]} 6... Ne4 {[%clk 0:02:26.3]} 7.
O-O {[%clk 0:02:50.3]} 7... Nd7 {[%clk 0:02:26.4]} 8. c4 {[%clk 0:02:50.5]} 8...
c6 {[%clk 0:02:26.2]} 9. Qc2 {[%clk 0:02:50.7]} 9... Bh7 {[%clk 0:02:09.5]} 10.
Nfd2 {[%clk 0:02:40.3]} 10... f5 {[%clk 0:02:08.1]} 11. f3 {[%clk 0:02:34.3]}
11... Nxd2 {[%clk 0:01:54.1]} 12. Nxd2 {[%clk 0:02:35.2]} 12... Bd6 {[%clk
0:01:51.4]} 13. e4 {[%clk 0:02:25.7]} 13... O-O {[%clk 0:01:50.3]} 14. Rae1
{[%clk 0:02:21.7]} 14... Bf4 {[%clk 0:01:43.9]} 15. g3 {[%clk 0:02:10.6]} 15...
Qg5 {[%clk 0:01:42.1]} 16. Nb1 {[%clk 0:01:43.5]} 16... Nf6 {[%clk 0:01:26]} 17.
e5 {[%clk 0:01:40.2]} 17... Nh5 {[%clk 0:01:23]} 18. Qf2 {[%clk 0:01:23.5]}
18... Nxg3 {[%clk 0:01:21.7]} 19. hxg3 {[%clk 0:01:22]} 19... Bxg3 {[%clk
0:01:21.9]} 20. Qg2 {[%clk 0:01:21.9]} 20... f4 {[%clk 0:01:17.4]} 21. Bxh7+
{[%clk 0:01:09.2]} 21... Kxh7 {[%clk 0:01:18.3]} 22. Re2 {[%clk 0:01:10.1]}
22... Qh4 {[%clk 0:01:17]} 23. Qh1 {[%clk 0:01:06.6]} 23... Qg5 {[%clk
0:00:55.7]} 24. Qh3 {[%clk 0:01:05.6]} 24... Rf5 {[%clk 0:00:54.6]} 25. Qg4
{[%clk 0:00:44.9]} 25... Qe7 {[%clk 0:00:54.1]} 26. Rg2 {[%clk 0:00:42.6]} 26...
Rg5 {[%clk 0:00:53.4]} 27. Qh3 {[%clk 0:00:42.3]} 27... Rf8 {[%clk 0:00:53.5]}
28. Nc3 {[%clk 0:00:41.6]} 28... Rff5 {[%clk 0:00:49.9]} 29. Re2 {[%clk
0:00:19.9]} 29... Rh5 {[%clk 0:00:48.1]} 30. Qg2 {[%clk 0:00:20.8]} 30... Rfg5
{[%clk 0:00:48.2]} 31. Bc1 {[%clk 0:00:20]} 31... Bh2+ {[%clk 0:00:47.2]} 32.
Kh1 {[%clk 0:00:19.4]} 32... Rxg2 {[%clk 0:00:47.5]} 33. Rxg2 {[%clk 0:00:19.8]}
33... Bg3+ {[%clk 0:00:48.1]} 34. Kg1 {[%clk 0:00:19.9]} 34... Qh4 {[%clk
0:00:48.8]} 0-1

[Event "*** Titled Tuesday Blitz"]
[Site "Chess.com"]
[Date "2021.02.02"]
[Round "4"]
[White "GMaka"]
[Black "RaneshRatnesan"]
[Result "1-0"]
[WhiteElo "2405"]
[BlackElo "2171"]
[TimeControl "180+1"]
[EndTime "10:41:00 PST"]
[Termination "GMaka won by checkmate"]

1. Nf3 {[%clk 0:03:00.9]} 1... d5 {[%clk 0:02:58.1]} 2. b3 {[%clk 0:03:00.6]}
2... c5 {[%clk 0:02:55.2]} 3. Bb2 {[%clk 0:03:01.5]} 3... Nc6 {[%clk 0:02:55.5]}
4. e3 {[%clk 0:03:02.1]} 4... Nf6 {[%clk 0:02:51.7]} 5. Bb5 {[%clk 0:03:02.5]}
5... e6 {[%clk 0:02:46.6]} 6. Bxc6+ {[%clk 0:03:01.5]} 6... bxc6 {[%clk
0:02:46.5]} 7. Ne5 {[%clk 0:03:02.4]} 7... Qc7 {[%clk 0:02:46.3]} 8. f4 {[%clk
0:03:03.3]} 8... Bd6 {[%clk 0:02:45.5]} 9. d3 {[%clk 0:03:02.9]} 9... Nd7 {[%clk
0:02:38.7]} 10. Nxd7 {[%clk 0:03:01.2]} 10... Bxd7 {[%clk 0:02:39.6]} 11. Qh5
{[%clk 0:02:57.6]} 11... d4 {[%clk 0:02:04.8]} 12. exd4 {[%clk 0:02:44.5]} 12...
Bxf4 {[%clk 0:02:03.5]} 13. dxc5 {[%clk 0:02:42.3]} 13... O-O {[%clk 0:01:53.4]}
14. O-O {[%clk 0:02:33.4]} 14... e5 {[%clk 0:01:45.6]} 15. Rxf4 {[%clk
0:02:24.3]} 15... exf4 {[%clk 0:01:44.2]} 16. Be5 {[%clk 0:02:23.2]} 16... Qd8
{[%clk 0:01:41.7]} 17. Nd2 {[%clk 0:02:17.1]} 17... f6 {[%clk 0:01:26]} 18. Bd6
{[%clk 0:02:15.5]} 18... Re8 {[%clk 0:01:22.4]} 19. Bxf4 {[%clk 0:02:01.6]}
19... Bg4 {[%clk 0:01:15.7]} 20. Qxg4 {[%clk 0:01:34.8]} 20... Qd4+ {[%clk
0:01:14]} 21. Kf1 {[%clk 0:01:33.5]} 21... Qxa1+ {[%clk 0:01:14]} 22. Kf2 {[%clk
0:01:34.2]} 22... Qe1+ {[%clk 0:01:11.9]} 23. Kf3 {[%clk 0:01:34.4]} 23... h5
{[%clk 0:00:51.3]} 24. Qd7 {[%clk 0:01:24.1]} 24... Re2 {[%clk 0:00:19.4]} 25.
Qd4 {[%clk 0:00:43.5]} 25... Qf1+ {[%clk 0:00:18.9]} 26. Nxf1 {[%clk 0:00:42.8]}
26... Ree8 {[%clk 0:00:19.5]} 27. Qc4+ {[%clk 0:00:42.4]} 27... Kh7 {[%clk
0:00:18.7]} 28. Ng3 {[%clk 0:00:42.2]} 28... h4 {[%clk 0:00:18.5]} 29. Nf5
{[%clk 0:00:41.9]} 29... Re1 {[%clk 0:00:18.7]} 30. Qf7 {[%clk 0:00:40.1]} 30...
Rg8 {[%clk 0:00:17.9]} 31. Qh5# {[%clk 0:00:40]} 1-0

[Event "*** Titled Tuesday Blitz"]
[Site "Chess.com"]
[Date "2021.02.02"]
[Round "4"]
[White "Al_Shima"]
[Black "Gerodot71"]
[Result "0-1"]
[WhiteElo "2288"]
[BlackElo "2466"]
[TimeControl "180+1"]
[EndTime "10:41:04 PST"]
[Termination "Gerodot71 won by resignation"]

1. d4 {[%clk 0:02:58.8]} 1... Nf6 {[%clk 0:03:00.2]} 2. c4 {[%clk 0:02:56.9]}
2... e6 {[%clk 0:02:59]} 3. Nf3 {[%clk 0:02:55.4]} 3... d5 {[%clk 0:02:58.1]} 4.
g3 {[%clk 0:02:53.2]} 4... Be7 {[%clk 0:02:57.8]} 5. Bg2 {[%clk 0:02:53.4]} 5...
O-O {[%clk 0:02:58.1]} 6. O-O {[%clk 0:02:53.7]} 6... dxc4 {[%clk 0:02:58.5]} 7.
Ne5 {[%clk 0:02:52.7]} 7... Qd6 {[%clk 0:02:57.9]} 8. Nxc4 {[%clk 0:02:51.2]}
8... Qa6 {[%clk 0:02:58.1]} 9. b3 {[%clk 0:02:41.3]} 9... Rd8 {[%clk 0:02:57.1]}
10. Bb2 {[%clk 0:02:32.1]} 10... c5 {[%clk 0:02:56.3]} 11. e3 {[%clk 0:02:24.2]}
11... cxd4 {[%clk 0:02:52.5]} 12. exd4 {[%clk 0:02:16.4]} 12... Bd7 {[%clk
0:02:52.3]} 13. Ne5 {[%clk 0:02:00.1]} 13... Be8 {[%clk 0:02:51.9]} 14. Qf3
{[%clk 0:01:55.3]} 14... Nc6 {[%clk 0:02:44.2]} 15. Nc3 {[%clk 0:01:43.8]} 15...
Rxd4 {[%clk 0:02:20.7]} 16. Rfe1 {[%clk 0:01:32.5]} 16... Rad8 {[%clk
0:02:13.2]} 17. Bf1 {[%clk 0:01:26.6]} 17... Qb6 {[%clk 0:02:05]} 18. Nc4 {[%clk
0:01:26.9]} 18... Qc7 {[%clk 0:01:58.7]} 19. Nb5 {[%clk 0:01:26.4]} 19... Qb8
{[%clk 0:01:49.6]} 20. Nxd4 {[%clk 0:01:25.5]} 20... Nxd4 {[%clk 0:01:50.5]} 21.
Bxd4 {[%clk 0:01:18.9]} 21... Rxd4 {[%clk 0:01:51]} 22. Qe3 {[%clk 0:01:14.5]}
22... Bc5 {[%clk 0:01:48.1]} 23. Qc3 {[%clk 0:01:08.2]} 23... Nd5 {[%clk
0:01:40.3]} 24. Qb2 {[%clk 0:01:05.2]} 24... Bc6 {[%clk 0:01:28.7]} 25. Ne5
{[%clk 0:01:00.8]} 25... Nb4 {[%clk 0:01:08.5]} 26. Nxc6 {[%clk 0:00:55.4]}
26... Nxc6 {[%clk 0:01:09.4]} 27. Rac1 {[%clk 0:00:54.7]} 27... Bb6 {[%clk
0:01:07.6]} 28. Bg2 {[%clk 0:00:48.3]} 28... Qd6 {[%clk 0:01:05.6]} 29. Re2
{[%clk 0:00:43.8]} 29... h5 {[%clk 0:01:02.4]} 30. Rec2 {[%clk 0:00:40.3]} 30...
h4 {[%clk 0:00:52.5]} 31. Bxc6 {[%clk 0:00:37.8]} 31... bxc6 {[%clk 0:00:51.6]}
32. Rxc6 {[%clk 0:00:37.3]} 32... Rd1+ {[%clk 0:00:48.4]} 33. Rxd1 {[%clk
0:00:32.2]} 33... Qxd1+ {[%clk 0:00:49.3]} 34. Kg2 {[%clk 0:00:31.9]} 34... Qd5+
{[%clk 0:00:49.7]} 0-1

[Event "*** Titled Tuesday Blitz"]
[Site "Chess.com"]
[Date "2021.02.02"]
[Round "4"]
[White "BikingBrian"]
[Black "TurboSteen"]
[Result "1-0"]
[WhiteElo "2321"]
[BlackElo "2042"]
[TimeControl "180+1"]
[EndTime "10:41:05 PST"]
[Termination "BikingBrian won by checkmate"]

1. d4 {[%clk 0:03:00.9]} 1... Nf6 {[%clk 0:02:56.6]} 2. Bg5 {[%clk 0:03:00.6]}
2... c5 {[%clk 0:02:53.6]} 3. Nc3 {[%clk 0:02:59.9]} 3... cxd4 {[%clk
0:02:51.8]} 4. Qxd4 {[%clk 0:03:00.8]} 4... Nc6 {[%clk 0:02:50]} 5. Qh4 {[%clk
0:03:00.7]} 5... d6 {[%clk 0:02:48.8]} 6. e4 {[%clk 0:03:00.9]} 6... Be6 {[%clk
0:02:43.5]} 7. f4 {[%clk 0:02:57.6]} 7... h6 {[%clk 0:02:38.9]} 8. f5 {[%clk
0:02:56]} 8... Bd7 {[%clk 0:02:36.3]} 9. O-O-O {[%clk 0:02:52.4]} 9... Qa5
{[%clk 0:02:34.4]} 10. Bc4 {[%clk 0:02:46.9]} 10... Ne5 {[%clk 0:02:30.4]} 11.
Bb3 {[%clk 0:02:41.2]} 11... Rc8 {[%clk 0:02:28]} 12. Nge2 {[%clk 0:02:39.2]}
12... b5 {[%clk 0:02:08]} 13. Bxf6 {[%clk 0:02:02.1]} 13... gxf6 {[%clk
0:02:04.7]} 14. g4 {[%clk 0:02:01.8]} 14... b4 {[%clk 0:01:59.2]} 15. Nd5 {[%clk
0:01:54.1]} 15... Qc5 {[%clk 0:01:57.3]} 16. Kb1 {[%clk 0:01:27.5]} 16... a5
{[%clk 0:01:54.5]} 17. c3 {[%clk 0:01:23.9]} 17... bxc3 {[%clk 0:01:48.6]} 18.
Nexc3 {[%clk 0:01:18.4]} 18... a4 {[%clk 0:01:41.6]} 19. Nxa4 {[%clk 0:01:06.5]}
19... Qa5 {[%clk 0:01:31.2]} 20. Qe1 {[%clk 0:01:03.6]} 20... Qa7 {[%clk
0:01:23.1]} 21. Nab6 {[%clk 0:00:59.9]} 21... Rb8 {[%clk 0:01:17.4]} 22. Qc3
{[%clk 0:00:53.1]} 22... Bg7 {[%clk 0:01:10.1]} 23. Nxd7 {[%clk 0:00:45.4]}
23... Nxd7 {[%clk 0:01:05.3]} 24. Qc7 {[%clk 0:00:44.7]} 24... Qa8 {[%clk
0:00:50.7]} 25. Nxe7 {[%clk 0:00:38.3]} 25... Qxe4+ {[%clk 0:00:40.8]} 26. Ka1
{[%clk 0:00:38.5]} 26... Rxb3 {[%clk 0:00:37.2]} 27. Rhe1 {[%clk 0:00:34.5]}
27... Qa8 {[%clk 0:00:25.4]} 28. Nc8+ {[%clk 0:00:27.6]} 28... Kf8 {[%clk
0:00:16.7]} 29. Qd8# {[%clk 0:00:27]} 1-0

[Event "*** Titled Tuesday Blitz"]
[Site "Chess.com"]
[Date "2021.02.02"]
[Round "4"]
[White "saraswathii"]
[Black "szefru"]
[Result "1-0"]
[WhiteElo "2423"]
[BlackElo "2210"]
[TimeControl "180+1"]
[EndTime "10:41:06 PST"]
[Termination "saraswathii won by resignation"]

1. e4 {[%clk 0:02:42.5]} 1... Nf6 {[%clk 0:02:57.8]} 2. d3 {[%clk 0:02:38]} 2...
d5 {[%clk 0:02:57.3]} 3. Nd2 {[%clk 0:02:28.8]} 3... dxe4 {[%clk 0:02:54.4]} 4.
dxe4 {[%clk 0:02:16]} 4... e5 {[%clk 0:02:54]} 5. Bd3 {[%clk 0:02:14.4]} 5...
Be7 {[%clk 0:02:52.6]} 6. Ngf3 {[%clk 0:02:14]} 6... Bg4 {[%clk 0:02:51.3]} 7.
h3 {[%clk 0:02:07.8]} 7... Bxf3 {[%clk 0:02:51.3]} 8. Nxf3 {[%clk 0:02:08.3]}
8... Nbd7 {[%clk 0:02:51.7]} 9. Be3 {[%clk 0:02:04.3]} 9... O-O {[%clk
0:02:51.6]} 10. Qd2 {[%clk 0:02:02.6]} 10... c5 {[%clk 0:02:51.4]} 11. O-O
{[%clk 0:01:58.4]} 11... Qc7 {[%clk 0:02:51.1]} 12. b3 {[%clk 0:01:54.8]} 12...
a6 {[%clk 0:02:48.9]} 13. a4 {[%clk 0:01:53.2]} 13... Rad8 {[%clk 0:02:48.5]}
14. Qe2 {[%clk 0:01:40.3]} 14... Nh5 {[%clk 0:02:31.7]} 15. g3 {[%clk 0:01:31]}
15... Nhf6 {[%clk 0:02:25.8]} 16. Nh4 {[%clk 0:01:29.2]} 16... Rfe8 {[%clk
0:02:23.2]} 17. Nf5 {[%clk 0:01:27.1]} 17... Bf8 {[%clk 0:02:23.5]} 18. Qf3
{[%clk 0:01:17.2]} 18... g6 {[%clk 0:02:20.1]} 19. Nh6+ {[%clk 0:01:13.9]} 19...
Kg7 {[%clk 0:02:13.2]} 20. Bc4 {[%clk 0:01:10.9]} 20... Re7 {[%clk 0:02:03]} 21.
Rad1 {[%clk 0:01:02.2]} 21... Nb6 {[%clk 0:01:57.3]} 22. Bg5 {[%clk 0:01:00.5]}
22... Rd6 {[%clk 0:01:43.7]} 23. Rxd6 {[%clk 0:00:45.7]} 23... Qxd6 {[%clk
0:01:44.6]} 24. Rd1 {[%clk 0:00:45]} 24... Qc6 {[%clk 0:01:44.7]} 25. Bd5 {[%clk
0:00:43]} 25... Nbxd5 {[%clk 0:01:43.9]} 26. exd5 {[%clk 0:00:41]} 26... Qd6
{[%clk 0:01:41.7]} 27. Bxf6+ {[%clk 0:00:39.6]} 27... Qxf6 {[%clk 0:01:41.2]}
28. Qxf6+ {[%clk 0:00:40.4]} 28... Kxf6 {[%clk 0:01:42.1]} 29. Ng8+ {[%clk
0:00:40.1]} 29... Kg7 {[%clk 0:01:41.3]} 30. Nxe7 {[%clk 0:00:39.7]} 30... Bxe7
{[%clk 0:01:42.2]} 31. d6 {[%clk 0:00:39.3]} 31... Bd8 {[%clk 0:01:42.5]} 32. d7
{[%clk 0:00:39.3]} 32... Kf6 {[%clk 0:01:41.5]} 33. Kg2 {[%clk 0:00:37.3]} 33...
Ke6 {[%clk 0:01:41.3]} 34. Kf3 {[%clk 0:00:36.7]} 34... f5 {[%clk 0:01:40.4]}
35. Ke3 {[%clk 0:00:36.4]} 35... Ke7 {[%clk 0:01:40.3]} 36. f4 {[%clk
0:00:33.7]} 36... e4 {[%clk 0:01:38.6]} 37. g4 {[%clk 0:00:33.5]} 37... Bc7
{[%clk 0:01:38.5]} 38. gxf5 {[%clk 0:00:33.1]} 38... gxf5 {[%clk 0:01:38.2]} 39.
Rd5 {[%clk 0:00:32.6]} 39... b5 {[%clk 0:01:27.1]} 40. axb5 {[%clk 0:00:31.2]}
40... axb5 {[%clk 0:01:28]} 41. Rxf5 {[%clk 0:00:29.8]} 41... Kxd7 {[%clk
0:01:27.5]} 42. Rf7+ {[%clk 0:00:29.4]} 42... Kc6 {[%clk 0:01:27.2]} 43. Rxc7+
{[%clk 0:00:29]} 43... Kxc7 {[%clk 0:01:28.1]} 44. Kxe4 {[%clk 0:00:28.9]} 44...
Kd6 {[%clk 0:01:27]} 45. f5 {[%clk 0:00:28.6]} 45... h6 {[%clk 0:01:24.2]} 46.
h4 {[%clk 0:00:26.8]} 46... Ke7 {[%clk 0:01:20.8]} 47. Kd5 {[%clk 0:00:23.2]}
47... Kf6 {[%clk 0:01:20.9]} 48. Kxc5 {[%clk 0:00:23.8]} 48... Kxf5 {[%clk
0:01:21.8]} 49. Kxb5 {[%clk 0:00:24.5]} 49... Kg4 {[%clk 0:01:21.8]} 50. c4
{[%clk 0:00:25.4]} 50... Kxh4 {[%clk 0:01:22.2]} 51. c5 {[%clk 0:00:26.3]} 51...
Kg5 {[%clk 0:01:22.8]} 52. c6 {[%clk 0:00:27.1]} 1-0

[Event "*** Titled Tuesday Blitz"]
[Site "Chess.com"]
[Date "2021.02.02"]
[Round "4"]
[White "LubovMarkelova"]
[Black "Chamal_Gedgafov"]
[Result "0-1"]
[WhiteElo "2243"]
[BlackElo "2366"]
[TimeControl "180+1"]
[EndTime "10:41:07 PST"]
[Termination "Chamal_Gedgafov won by resignation"]

1. Nf3 {[%clk 0:03:00.9]} 1... Nf6 {[%clk 0:02:58.8]} 2. c4 {[%clk 0:03:00.5]}
2... g6 {[%clk 0:02:58.3]} 3. Nc3 {[%clk 0:03:00.2]} 3... Bg7 {[%clk 0:02:58.2]}
4. e4 {[%clk 0:03:00.2]} 4... O-O {[%clk 0:02:58.5]} 5. d4 {[%clk 0:03:00.1]}
5... d6 {[%clk 0:02:58.4]} 6. Be2 {[%clk 0:02:59.6]} 6... e5 {[%clk 0:02:58]} 7.
d5 {[%clk 0:02:55.7]} 7... a5 {[%clk 0:02:56.8]} 8. Bg5 {[%clk 0:02:52.9]} 8...
h6 {[%clk 0:02:56.6]} 9. Bh4 {[%clk 0:02:51.8]} 9... g5 {[%clk 0:02:56.7]} 10.
Bg3 {[%clk 0:02:52.1]} 10... Nh5 {[%clk 0:02:57]} 11. h4 {[%clk 0:02:52.2]}
11... Nf4 {[%clk 0:02:55.4]} 12. hxg5 {[%clk 0:02:39.7]} 12... hxg5 {[%clk
0:02:56.3]} 13. O-O {[%clk 0:02:01.1]} 13... Na6 {[%clk 0:02:54.4]} 14. Nh2
{[%clk 0:01:58]} 14... Nc5 {[%clk 0:02:38.1]} 15. Bg4 {[%clk 0:01:55.7]} 15...
f5 {[%clk 0:02:37.1]} 16. exf5 {[%clk 0:01:54.5]} 16... Bxf5 {[%clk 0:02:25.7]}
17. Bxf5 {[%clk 0:01:53.4]} 17... Rxf5 {[%clk 0:02:25.9]} 18. Qg4 {[%clk
0:01:50.9]} 18... Qf6 {[%clk 0:02:23.6]} 19. Nf3 {[%clk 0:01:48.9]} 19... Rf8
{[%clk 0:02:16.6]} 20. Rfe1 {[%clk 0:01:47.5]} 20... Qg6 {[%clk 0:01:51.8]} 21.
Bxf4 {[%clk 0:01:41.4]} 21... Rxf4 {[%clk 0:01:45]} 22. Qxg5 {[%clk 0:01:38.5]}
22... Qxg5 {[%clk 0:01:44.6]} 23. Nxg5 {[%clk 0:01:38.7]} 23... Rxf2 {[%clk
0:01:42.6]} 24. b3 {[%clk 0:01:20.5]} 24... e4 {[%clk 0:01:35.4]} 25. Rac1
{[%clk 0:00:57.4]} 25... Nd3 {[%clk 0:01:20.3]} 26. Ncxe4 {[%clk 0:00:51.2]}
26... R2f5 {[%clk 0:01:14.5]} 27. Ne6 {[%clk 0:00:49.8]} 27... R8f7 {[%clk
0:01:00.8]} 28. g4 {[%clk 0:00:42.1]} 28... Re5 {[%clk 0:00:53.4]} 29. Nxg7
{[%clk 0:00:29.4]} 29... Kxg7 {[%clk 0:00:47.7]} 0-1

[Event "*** Titled Tuesday Blitz"]
[Site "Chess.com"]
[Date "2021.02.02"]
[Round "4"]
[White "Boninknights"]
[Black "Vesper2018"]
[Result "1-0"]
[WhiteElo "2475"]
[BlackElo "2602"]
[TimeControl "180+1"]
[EndTime "10:41:09 PST"]
[Termination "Boninknights won on time"]

1. d4 {[%clk 0:02:59.6]} 1... Nf6 {[%clk 0:02:59.7]} 2. Nf3 {[%clk 0:02:59.3]}
2... g6 {[%clk 0:02:59.7]} 3. c4 {[%clk 0:02:59]} 3... Bg7 {[%clk 0:03:00.1]} 4.
Nc3 {[%clk 0:02:58.8]} 4... O-O {[%clk 0:03:00.2]} 5. e4 {[%clk 0:02:57.6]} 5...
d6 {[%clk 0:03:00.5]} 6. Be2 {[%clk 0:02:57.5]} 6... e5 {[%clk 0:03:00.5]} 7.
dxe5 {[%clk 0:02:57.3]} 7... dxe5 {[%clk 0:02:59]} 8. Qxd8 {[%clk 0:02:56.6]}
8... Rxd8 {[%clk 0:02:58.8]} 9. Bg5 {[%clk 0:02:55.9]} 9... Nbd7 {[%clk
0:02:56.3]} 10. O-O-O {[%clk 0:02:54.5]} 10... Rf8 {[%clk 0:02:56.4]} 11. Nd5
{[%clk 0:02:51.1]} 11... c6 {[%clk 0:02:50]} 12. Ne7+ {[%clk 0:02:50.4]} 12...
Kh8 {[%clk 0:02:50]} 13. Be3 {[%clk 0:02:49]} 13... Re8 {[%clk 0:02:30.3]} 14.
Nxc8 {[%clk 0:02:47.3]} 14... Raxc8 {[%clk 0:02:30.8]} 15. Ng5 {[%clk
0:02:46.9]} 15... Kg8 {[%clk 0:02:28.7]} 16. Bg4 {[%clk 0:02:45.3]} 16... Rc7
{[%clk 0:02:00.5]} 17. Bxd7 {[%clk 0:02:42.8]} 17... Nxd7 {[%clk 0:01:53.8]} 18.
Rd2 {[%clk 0:02:31.7]} 18... h6 {[%clk 0:01:48.9]} 19. Rhd1 {[%clk 0:02:27.2]}
19... Nf6 {[%clk 0:01:47.7]} 20. Nf3 {[%clk 0:02:20.2]} 20... Nxe4 {[%clk
0:01:48]} 21. Rd7 {[%clk 0:02:19.2]} 21... Re7 {[%clk 0:01:33.6]} 22. Rd8+
{[%clk 0:02:12.3]} 22... Kh7 {[%clk 0:01:33]} 23. Bxa7 {[%clk 0:02:11.5]} 23...
b5 {[%clk 0:01:27.2]} 24. Bb6 {[%clk 0:02:03.9]} 24... Rb7 {[%clk 0:01:27.1]}
25. c5 {[%clk 0:02:03.9]} 25... Nxf2 {[%clk 0:01:25.2]} 26. R1d6 {[%clk
0:02:01.1]} 26... e4 {[%clk 0:01:21.8]} 27. Ne1 {[%clk 0:01:53.6]} 27... Nd3+
{[%clk 0:00:31.9]} 28. Nxd3 {[%clk 0:01:51]} 28... exd3 {[%clk 0:00:32.2]} 29.
Rxd3 {[%clk 0:01:45]} 29... Re2 {[%clk 0:00:32.2]} 30. Rd2 {[%clk 0:01:42.2]}
30... Rbe7 {[%clk 0:00:32.3]} 31. R8d6 {[%clk 0:01:37.3]} 31... h5 {[%clk
0:00:29.4]} 32. Rxe2 {[%clk 0:01:32.4]} 32... Rxe2 {[%clk 0:00:28.8]} 33. Rxc6
{[%clk 0:01:31.8]} 33... Rxb2 {[%clk 0:00:27.3]} 34. Rc7 {[%clk 0:01:29.5]}
34... Rxa2 {[%clk 0:00:27.5]} 35. Rxf7 {[%clk 0:01:27.4]} 35... Kg8 {[%clk
0:00:20.4]} 36. Rd7 {[%clk 0:01:26.5]} 36... b4 {[%clk 0:00:20.3]} 37. c6 {[%clk
0:01:21.8]} 37... b3 {[%clk 0:00:20.7]} 38. c7 {[%clk 0:01:18.2]} 38... Rc2+
{[%clk 0:00:03.1]} 39. Kd1 {[%clk 0:01:12.4]} 39... Kh7 {[%clk 0:00:02.5]} 40.
Bd4 {[%clk 0:01:07.2]} 1-0

[Event "*** Titled Tuesday Blitz"]
[Site "Chess.com"]
[Date "2021.02.02"]
[Round "4"]
[White "HElissalt"]
[Black "canary2016"]
[Result "0-1"]
[WhiteElo "2207"]
[BlackElo "2024"]
[TimeControl "180+1"]
[EndTime "10:41:09 PST"]
[Termination "canary2016 won on time"]

1. d4 {[%clk 0:02:57.7]} 1... d5 {[%clk 0:02:59.4]} 2. c4 {[%clk 0:02:57.6]}
2... c6 {[%clk 0:02:59.2]} 3. cxd5 {[%clk 0:02:57.2]} 3... cxd5 {[%clk
0:02:59.1]} 4. Bf4 {[%clk 0:02:57.9]} 4... Nf6 {[%clk 0:02:58.8]} 5. e3 {[%clk
0:02:58.4]} 5... Nc6 {[%clk 0:02:58.8]} 6. Bd3 {[%clk 0:02:58.2]} 6... Bg4
{[%clk 0:02:57.2]} 7. f3 {[%clk 0:02:58.1]} 7... Bh5 {[%clk 0:02:56.7]} 8. Nc3
{[%clk 0:02:58.7]} 8... e6 {[%clk 0:02:55.6]} 9. Nh3 {[%clk 0:02:58.3]} 9... Bg6
{[%clk 0:02:55]} 10. O-O {[%clk 0:02:55.7]} 10... Bd6 {[%clk 0:02:54]} 11. Rc1
{[%clk 0:02:53.2]} 11... O-O {[%clk 0:02:52.8]} 12. Bg5 {[%clk 0:02:50.8]} 12...
Be7 {[%clk 0:02:47.8]} 13. Nf4 {[%clk 0:02:40]} 13... Bxd3 {[%clk 0:02:43.7]}
14. Nxd3 {[%clk 0:02:37.9]} 14... h6 {[%clk 0:02:43.7]} 15. Bh4 {[%clk
0:02:30.8]} 15... Rc8 {[%clk 0:02:40.9]} 16. Bf2 {[%clk 0:02:26]} 16... Nd7
{[%clk 0:02:38.7]} 17. e4 {[%clk 0:02:24]} 17... dxe4 {[%clk 0:02:37.3]} 18.
fxe4 {[%clk 0:02:23.5]} 18... Nb6 {[%clk 0:02:36.6]} 19. Ne1 {[%clk 0:01:55.5]}
19... Qd7 {[%clk 0:02:10.5]} 20. Nf3 {[%clk 0:01:53.1]} 20... Rfd8 {[%clk
0:02:09.2]} 21. Qe2 {[%clk 0:01:51.2]} 21... Bb4 {[%clk 0:02:05.9]} 22. Rfd1
{[%clk 0:01:43.9]} 22... Qe7 {[%clk 0:02:05.1]} 23. a3 {[%clk 0:01:34.7]} 23...
Bxc3 {[%clk 0:02:04.4]} 24. Rxc3 {[%clk 0:01:34.8]} 24... Na5 {[%clk 0:02:02.3]}
25. Rdc1 {[%clk 0:01:30.1]} 25... Rxc3 {[%clk 0:02:01.6]} 26. Rxc3 {[%clk
0:01:29.8]} 26... Nc6 {[%clk 0:02:01.4]} 27. Qb5 {[%clk 0:01:23.6]} 27... e5
{[%clk 0:01:36.2]} 28. d5 {[%clk 0:01:18.6]} 28... Nd4 {[%clk 0:01:35.5]} 29.
Qd3 {[%clk 0:01:04.7]} 29... Nxf3+ {[%clk 0:01:28.7]} 30. Qxf3 {[%clk
0:01:00.6]} 30... Nd7 {[%clk 0:01:28.3]} 31. Rc7 {[%clk 0:00:53.7]} 31... Qg5
{[%clk 0:01:24.8]} 32. Be3 {[%clk 0:00:48.9]} 32... Qg6 {[%clk 0:01:17.1]} 33.
Rxb7 {[%clk 0:00:46.8]} 33... Nf6 {[%clk 0:01:14.3]} 34. Rxa7 {[%clk 0:00:39.3]}
34... Nxe4 {[%clk 0:01:13]} 35. Bb6 {[%clk 0:00:31.9]} 35... Rxd5 {[%clk
0:01:09.9]} 36. Ra8+ {[%clk 0:00:05.9]} 36... Kh7 {[%clk 0:01:09.1]} 37. h3
{[%clk 0:00:05.2]} 37... Qxb6+ {[%clk 0:01:08]} 38. Kh2 {[%clk 0:00:05.5]} 38...
Qg6 {[%clk 0:01:05.5]} 39. Rf8 {[%clk 0:00:02.6]} 39... Nf6 {[%clk 0:01:03.6]}
0-1